fUST/lending_fUST_20240522
["ID","MTS","AMOUNT","RATE_DAILY","PERIOD"]
[327696842,1716324644447,-654.99,0.00033424,6]
[327696845,1716324644457,-500.0,0.00033424,6]
[327696846,1716324644467,-500.0,0.00033424,6]
[327696849,1716324644476,-500.0,0.00033424,6]
[327696850,1716324644486,-500.0,0.00033424,6]
[327696853,1716324644495,-500.0,0.00033424,6]
[327696855,1716324644505,-500.0,0.00033424,6]
[327696857,1716324644526,-609.23,0.00033424,6]
[327696859,1716324644543,-1044.79,0.00033424,6]
[327696861,1716324644552,-824.04,0.00033424,6]
[327696863,1716324644561,-500.0,0.00033424,6]
[327696865,1716324644573,-516.66299704,0.00033424,6]
[327696867,1716324644584,-672.62,0.00033424,6]
[327696869,1716324644594,-500.0,0.00033424,6]
[327696871,1716324644603,-718.68,0.00033424,6]
[327696873,1716324644612,-500.0,0.00033424,6]
[327696875,1716324644623,-1514.39,0.00033424,6]
[327696877,1716324644632,-500.0,0.00033424,6]
[327696879,1716324644641,-877.1,0.00033424,6]
[327696881,1716324644650,-969.11,0.00033424,6]
[327696883,1716324644660,-379.58266528,0.00033424,6]
[327696885,1716324644669,-501.30737127,0.00033424,6]
[327696887,1716324644678,-500.0,0.00033424,6]
[327696889,1716324644687,-697.25,0.00033424,6]
[327696891,1716324644697,-500.0,0.00033424,6]
[327696893,1716324644706,-4372.39768636,0.00033424,6]
[327696962,1716324645351,-652.49231364,0.00033424,6]
[327696964,1716324645361,-500.0,0.00033424,6]
[327696966,1716324645370,-500.0,0.00033424,6]
[327696968,1716324645379,-500.0,0.00033424,6]
[327696970,1716324645389,-500.0,0.00033424,2]
[327696972,1716324645398,-1007.59,0.00033424,6]
[327696974,1716324645408,-500.0,0.00033424,6]
[327696976,1716324645417,-500.0,0.00033424,6]
[327696978,1716324645427,-500.0,0.00033424,6]
[327696980,1716324645436,-500.0,0.00033424,6]
[327696982,1716324645446,-405.57982331,0.00033424,6]
[327697048,1716324646082,-94.42017669,0.00033424,6]
[327697050,1716324646092,-366.43437334,0.00033424,6]
[327697052,1716324646103,-594.49542489,0.00033424,6]
[327698255,1716325832951,-175.6616625,0.00019999,2]
[327698257,1716325832961,-1006.95318149,0.0002,15]
[327698259,1716325832975,-993.04681851,0.0002,15]
[327698260,1716325832984,-166.666666,0.00021918,2]
[327698262,1716325832994,-476.309468,0.00021918,2]
[327698264,1716325833003,-166.666666,0.00022472,2]
[327698266,1716325833012,-166.666666,0.00023027,2]
[327698268,1716325833022,-166.666666,0.00023582,2]
[327698270,1716325833031,-166.666666,0.00024136,2]
[327698272,1716325833041,-161.043194,0.00024384,2]
[327698274,1716325833050,-285.976127,0.00024384,2]
[327698276,1716325833060,-166.666666,0.00024691,2]
[327698278,1716325833068,-161.838419,0.00028253,2]
[327698280,1716325833077,-285.976127,0.0003031,2]
[327698282,1716325833087,-150.374,0.00032873,2]
[327698284,1716325833096,-171.075,0.00032873,2]
[327698286,1716325833105,-250.0,0.00032873,2]
[327698288,1716325833115,-153.0,0.00033178,2]
[327698290,1716325833124,-153.0,0.00033178,2]
[327698292,1716325833135,-153.0,0.00033178,2]
[327698294,1716325833144,-475.47989281,0.00033202,2]
[327698296,1716325833156,-5424.24111078,0.00033202,2]
[327698801,1716325838392,-100.27899641,0.00033202,2]
[327698804,1716325838402,-153.4211135,0.00033323,2]
[327698806,1716325838411,-151.0,0.000334,9]
[327698808,1716325838420,-172.95,0.00033414,3]
[327698809,1716325838429,-864.76,0.00033414,3]
[327698811,1716325838438,-5342.19208939,0.00033422,4]
[327698815,1716325838464,-468.12640148,0.00033422,4]
[327698829,1716325838476,-796.5374639,0.00033422,4]
[327698831,1716325838606,-436.08853794,0.00033422,4]
[327698833,1716325838616,-3779.07690514,0.00033423,4]
[327699038,1716325840603,-3481.65,0.00033423,4]
[327699226,1716325842467,-464.78866184,0.00033423,4]
[327699234,1716325842536,-4762.90129577,0.00033423,4]
[327699236,1716325842546,-2581.77932023,0.00033423,4]
[327699238,1716325842555,-154.55795854,0.00033423,7]
[327699240,1716325842565,-500.0,0.00033423,7]
[327699242,1716325842574,-500.0,0.00033423,7]
[327699244,1716325842584,-500.0,0.00033423,7]
[327699246,1716325842593,-500.0,0.00033423,7]
[327699248,1716325842602,-291.2497995,0.00033423,7]
[327699250,1716325842611,-500.0,0.00033423,7]
[327699252,1716325842621,-241.07829786,0.00033423,7]
[327699254,1716325842632,-258.92170214,0.00033423,7]
[327699256,1716325842644,-340.87843479,0.00033423,7]
[327699342,1716325843654,-159.12156521,0.00033423,7]
[327699344,1716325843664,-335.85473381,0.00033423,7]
[327700647,1716327041044,-175.6616625,0.00019999,2]
[327700649,1716327041054,-2000.0,0.0002,15]
[327700652,1716327041064,-166.666666,0.00021918,2]
[327700655,1716327041073,-166.666666,0.00022559,2]
[327700658,1716327041083,-166.666666,0.000232,2]
[327700661,1716327041092,-114.1337345,0.00023841,2]
[327700988,1716327044221,-52.5329315,0.00023841,2]
[327700990,1716327044230,-257.378514,0.00024384,2]
[327700992,1716327044240,-164.670707,0.00024384,2]
[327700994,1716327044254,-166.666666,0.00024482,2]
[327700996,1716327044263,-170.68488,0.00028122,2]
[327700998,1716327044272,-257.378514,0.0003031,2]
[327701000,1716327044281,-153.0,0.0003263,2]
[327701002,1716327044292,-306.0,0.0003263,2]
[327701004,1716327044302,-153.0,0.0003263,2]
[327701006,1716327044311,-384.76902486,0.00033324,2]
[327701008,1716327044322,-500.0,0.00033423,7]
[327701010,1716327044331,-500.0,0.00033423,7]
[327701012,1716327044342,-500.0,0.00033423,7]
[327701014,1716327044351,-500.0,0.00033423,7]
[327701016,1716327044359,-150.90392111,0.00033423,7]
[327702347,1716328232108,-175.6616625,0.00019999,2]
[327702349,1716328232118,-2000.0,0.0002,15]
[327702351,1716328232127,-231.640662,0.00024384,2]
[327702353,1716328232137,-164.670707,0.00024384,2]
[327702355,1716328232147,-161.838419,0.00028749,2]
[327702357,1716328232156,-4887.94110199,0.0003,30]
[327702359,1716328232165,-231.640662,0.0003031,2]
[327702361,1716328232175,-693.59135118,0.00033324,2]
[327702363,1716328232184,-22341.85229592,0.00033324,5]
[327702365,1716328232193,-757.26804943,0.00033324,2]
[327702367,1716328232202,-9614.41568833,0.00033348,7]
[327702439,1716328238528,-871.102,0.0003,7]
[327702477,1716328243529,-500.0,0.0003,7]
[327702556,1716329432587,-175.6616625,0.00019999,2]
[327702557,1716329432597,-809.8458375,0.0002,15]
[327702558,1716329432609,-1065.23993071,0.0002,15]
[327702559,1716329432620,-161.838419,0.00020737,2]
[327702560,1716329432629,-166.666666,0.00021918,2]
[327702561,1716329432638,-166.666666,0.00022472,2]
[327702562,1716329432647,-166.666666,0.00023027,2]
[327702563,1716329432656,-166.666666,0.00023582,2]
[327702564,1716329432665,-166.666666,0.00024136,2]
[327702565,1716329432674,-301.278605,0.00024384,2]
[327702566,1716329432683,-176.528474,0.00024384,2]
[327702567,1716329432693,-166.666666,0.00024691,2]
[327702568,1716329432704,-960.22266967,0.00029099,2]
[327702569,1716329432713,-170.68488,0.00029302,2]
[327702570,1716329432848,-301.278605,0.0003031,2]
[327702571,1716329432859,-637.85945772,0.00030479,2]
[327702572,1716329432869,-480.25693471,0.00031,2]
[327702573,1716329432879,-417.32360569,0.00032986,2]
[327702574,1716329432889,-496.0,0.00033027,2]
[327702575,1716329432898,-4224.07535635,0.00033102,2]
[327702576,1716329432907,-165.47801498,0.00033322,2]
[327702577,1716329432917,-53290.19474874,0.00033348,7]
[327702629,1716329439091,-490.18874402,0.00033348,7]
[327702736,1716329444325,-6083.56310856,0.00033348,7]
[327702783,1716329446666,-2095.31,0.00033348,7]
[327702946,1716330632025,-189.02283243,0.00020909,2]
[327702948,1716330632035,-175.6616625,0.0002091,2]
[327702950,1716330632043,-166.666666,0.00021918,2]
[327702953,1716330632053,-166.666666,0.00022431,2]
[327702956,1716330632063,-166.666666,0.00022944,2]
[327702960,1716330632073,-164.05437908,0.00023425,2]
[327702963,1716330632083,-166.666666,0.00023456,2]
[327702965,1716330632092,-151.0,0.00023525,3]
[327702969,1716330632102,-151.0,0.00023525,3]
[327702972,1716330632112,-166.666666,0.00023969,2]
[327702975,1716330632121,-271.150744,0.00024384,2]
[327702977,1716330632130,-176.528474,0.00024384,2]
[327702980,1716330632140,-151.0,0.00024425,3]
[327702983,1716330632150,-151.0,0.00024425,3]
[327702986,1716330632159,-166.666666,0.00024482,2]
[327702989,1716330632168,-151.0,0.00025325,5]
[327702992,1716330632178,-151.0,0.00026225,5]
[327702995,1716330632188,-151.0,0.00027125,5]
[327702997,1716330632197,-151.0,0.00028025,5]
[327702999,1716330632206,-161.838419,0.00028433,2]
[327703001,1716330632216,-151.0,0.00028924,7]
[327703003,1716330632226,-271.150744,0.0003031,2]
[327703005,1716330632235,-668.25604538,0.00031248,2]
[327703007,1716330632244,-2155.01460361,0.0003289,2]
[327703437,1716330643205,-8417.9445,0.0003289,2]
[327703469,1716330643505,-477.07479456,0.0003289,2]
[327705815,1716331833681,-155.00775039,0.00020913,2]
[327705816,1716331833695,-244.035669,0.00024384,2]
[327705817,1716331833712,-3220.8298764,0.00025168,2]
[327705818,1716331833726,-161.838419,0.00025381,2]
[327705819,1716331833739,-1840.67922749,0.0003,7]
[327705838,1716331838877,-1296.1,0.0003,7]
[327705880,1716331858282,311.10912712,9.999e-05,2]
[327705950,1716332943500,175.6616625,9.999e-05,2]
[327705979,1716333033348,-155.01240099,0.00018899,2]
[327705980,1716333033359,-445.50403025,0.000189,2]
[327705981,1716333033369,-2000.0,0.0002,15]
[327705982,1716333033379,-5611.87,0.0002032,2]
[327705983,1716333033390,-161.838419,0.00021627,2]
[327705984,1716333033399,-151.0,0.00023563,3]
[327705985,1716333033410,-445.50403025,0.000239,2]
[327705986,1716333033420,-231.640676,0.00024384,2]
[327705987,1716333033430,-283.268385,0.00024384,2]
[327705988,1716333033440,-151.0,0.00024459,3]
[327705989,1716333033450,-417.32360569,0.00025074,2]
[327705990,1716333033459,-4224.07535635,0.00025077,2]
[327705991,1716333033469,-151.0,0.00025356,5]
[327705992,1716333033478,-151.0,0.00026252,5]
[327705993,1716333033488,-151.0,0.00027149,5]
[327705994,1716333033498,-151.0,0.00028045,7]
[327705995,1716333033507,-445.50403025,0.000289,2]
[327705996,1716333033517,-151.0,0.00028942,7]
[327705997,1716333033526,-2651.24419632,0.000299,2]
[327705998,1716333033536,-165.47801495,0.000299,2]
[327705999,1716333033547,-294.16798662,0.00029999,2]
[327706000,1716333033558,-18402.55782208,0.0003,30]
[327706001,1716333033568,-2172.44763718,0.0003,30]
[327706002,1716333033578,-3328.9625547,0.0003,4]
[327706008,1716333038758,-559.54196123,0.0003,4]
[327706011,1716333038770,-258.75359852,0.0003,4]
[327706059,1716333044960,-1972.14850434,0.0003,4]
[327706060,1716333044970,-151.0,0.0003,2]
[327706063,1716333044980,-151.0,0.0003,2]
[327706064,1716333044990,-309.4430026,0.0003008,4]
[327706065,1716333045000,-283.268385,0.0003031,2]
[327706066,1716333045009,-515.04810258,0.000309,2]
[327706067,1716333045021,-9308.06421473,0.00031,2]
[327706068,1716333045036,-4182.94256593,0.00031,2]
[327706069,1716333045045,-151.0,0.00031,2]
[327706070,1716333045054,-151.0,0.00031,2]
[327706072,1716333045067,-191.85799,0.00031,2]
[327706074,1716333045076,-151.0,0.00031,2]
[327706075,1716333045086,-151.0,0.00031,2]
[327706077,1716333045095,-151.0,0.00031,2]
[327706079,1716333045105,-151.0,0.00031,2]
[327706080,1716333045114,-515.04810255,0.00031505,2]
[327706081,1716333045124,-165.47801495,0.00031592,2]
[327706082,1716333045133,-921.05245398,0.00031751,4]
[327706083,1716333045143,-515.04810255,0.0003211,2]
[327706084,1716333045152,-15202.51992391,0.00032335,7]
[327706094,1716333049341,-11588.8,0.00032335,7]
[327706096,1716333049352,-746.779422,0.00032335,7]
[327706099,1716333049364,-778.395,0.00032335,7]
[327706201,1716334239880,-155.01860223,0.00020913,2]
[327706203,1716334239891,-254.941546,0.00024384,2]
[327706206,1716334239901,-393.8053754,0.00029554,2]
[327706208,1716334239911,-254.941546,0.0003031,2]
[327706209,1716334239922,-161.838419,0.00030515,2]
[327706210,1716334239932,-720.30051148,0.00031884,2]
[327706211,1716334239944,-1154.9970242,0.00031884,2]
[327706212,1716334239955,-3025.6229758,0.00032335,7]
[327706246,1716334244340,-46673.029738,0.00032335,7]
[327706247,1716334244352,-393.80537543,0.00032335,7]
[327706361,1716335432243,-155.02170304,0.00020913,2]
[327706362,1716335432253,-120.14004353,0.00024384,2]
[327706363,1716335432265,-163.12836047,0.00024384,2]
[327706364,1716335432275,-229.447391,0.00024384,2]
[327706365,1716335432284,-154.73694719,0.0003,2]
[327706366,1716335432294,-727.3910643,0.0003,30]
[327706379,1716335438127,-4160.55003769,0.0003,30]
[327706380,1716335438137,-309.4430026,0.0003008,4]
[327706381,1716335438146,-229.447391,0.0003031,2]
[327706382,1716335438156,-207.697282,0.00031999,2]
[327706383,1716335438165,-30262.45290692,0.00032,2]
[327706391,1716335441969,-342.80499812,0.00032,2]
[327706415,1716335443523,-683.54112074,0.00032,2]
[327706656,1716336632720,-206.502651,0.00024384,2]
[327706657,1716336632729,-166.666666,0.00028701,2]
[327706658,1716336632739,-206.502651,0.0003031,2]
[327706659,1716336632748,-764.4770242,0.00031718,2]
[327706660,1716336632758,-119.36927843,0.00031788,3]
[327706678,1716336638559,-211.49972169,0.00031788,3]
[327706679,1716336638569,-1676.75027831,0.00032,2]
[327706680,1716336638580,-276.87775551,0.00032,2]
[327706711,1716336643747,-1307.27752978,0.00032,2]
[327706712,1716336643757,-5708.92247022,0.00032335,7]
[327706713,1716336643771,-5568.23029029,0.00032335,7]
[327706714,1716336643783,-19996.2278,0.00032335,7]
[327706721,1716336646564,-3430.335,0.00032335,7]
[327706722,1716336646640,-63482.32549116,0.00032335,7]
[327706723,1716336646650,-155.04496305,0.00032335,2]
[327706724,1716336646660,-1972.14850434,0.00032335,4]
[327706725,1716336646669,-285.83068385,0.00032335,2]
[327706726,1716336646680,-11331.66486899,0.00032335,30]
[327706727,1716336646689,-344.02246403,0.00032789,2]
[327706728,1716336646698,-154.05666748,0.00032789,2]
[327706729,1716336646708,-757.26804943,0.0003279,2]
[327706730,1716336646717,-235.74,0.0003288,3]
[327706731,1716336646727,-707.25,0.0003288,3]
[327706732,1716336646736,-381.44,0.0003288,3]
[327706733,1716336646745,-317.86,0.0003288,3]
[327706734,1716336646754,-7560.8129439,0.00032889,7]
[327706735,1716336646764,-500.0,0.00032889,6]
[327706736,1716336646773,-500.0,0.00032889,6]
[327706737,1716336646783,-390.33304961,0.00032889,6]
[327706738,1716336646792,-356.35210725,0.00032889,7]
[327706739,1716336646801,-181.20503425,0.00032889,7]
[327706740,1716336646811,-500.0,0.00032889,7]
[327706741,1716336646820,-183.97004411,0.00032889,7]
[327706742,1716336646830,-258.6791279,0.00032889,7]
[327706743,1716336646840,-466.93761834,0.00032889,7]
[327706744,1716336646849,-500.0,0.00032889,7]
[327706745,1716336646859,-278.59115257,0.00032889,7]
[327706746,1716336646868,-491.16049419,0.00032889,7]
[327706747,1716336646878,-165.46154975,0.00032889,7]
[327706748,1716336646887,-500.0,0.00032889,7]
[327706749,1716336646897,-607.45270668,0.00032889,7]
[327706750,1716336646906,-500.0,0.00032889,7]
[327706751,1716336646915,-500.0,0.00032889,7]
[327706752,1716336646924,-500.0,0.00032889,7]
[327706753,1716336646933,-500.0,0.00032889,7]
[327706754,1716336646942,-633.42191517,0.00032889,7]
[327706755,1716336646952,-500.0,0.00032889,7]
[327706756,1716336646961,-500.0,0.00032889,7]
[327706757,1716336646970,-500.0,0.00032889,7]
[327706758,1716336646980,-500.0,0.00032889,7]
[327706759,1716336646989,-500.0,0.00032889,7]
[327706760,1716336646998,-500.0,0.00032889,7]
[327706761,1716336647008,-500.0,0.00032889,7]
[327706762,1716336647019,-500.0,0.00032889,7]
[327706763,1716336647028,-500.0,0.00032889,7]
[327706764,1716336647038,-500.0,0.00032889,7]
[327706765,1716336647047,-500.0,0.00032889,7]
[327706766,1716336647056,-500.0,0.00032889,7]
[327706767,1716336647065,-500.0,0.00032889,7]
[327706768,1716336647075,-500.0,0.00032889,7]
[327706769,1716336647088,-500.0,0.00032889,7]
[327706770,1716336647097,-500.0,0.00032889,7]
[327706771,1716336647107,-500.0,0.00032889,7]
[327706772,1716336647116,-500.0,0.00032889,7]
[327706773,1716336647126,-500.0,0.00032889,7]
[327706774,1716336647136,-500.0,0.00032889,7]
[327706775,1716336647145,-500.0,0.00032889,7]
[327706776,1716336647154,-500.0,0.00032889,7]
[327706777,1716336647164,-500.0,0.00032889,7]
[327706778,1716336647173,-7607.09232922,0.0003289,7]
[327706779,1716336647183,-100240.94334211,0.0003289,6]
[327706780,1716336647192,-151.0,0.0003289,2]
[327706781,1716336647201,-151.0,0.0003289,2]
[327706782,1716336647210,-151.0,0.0003289,2]
[327706783,1716336647218,-151.0,0.0003289,2]
[327706784,1716336647227,-151.0,0.0003289,2]
[327706785,1716336647236,-151.0,0.0003289,2]
[327706786,1716336647245,-151.0,0.0003289,2]
[327706787,1716336647266,-151.0,0.0003289,2]
[327706788,1716336647275,-151.0,0.0003289,2]
[327706789,1716336647285,-151.0,0.0003289,2]
[327706790,1716336647295,-151.0,0.0003289,2]
[327706791,1716336647304,-158.432512,0.0003289,2]
[327706792,1716336647314,-151.0,0.0003289,2]
[327706793,1716336647324,-151.0,0.0003289,2]
[327706794,1716336647333,-151.0,0.0003289,2]
[327706795,1716336647343,-151.0,0.0003289,2]
[327706796,1716336647353,-151.0,0.0003289,2]
[327706797,1716336647363,-151.0,0.0003289,2]
[327706798,1716336647373,-151.0,0.0003289,2]
[327706799,1716336647384,-151.0,0.0003289,2]
[327706800,1716336647393,-151.0,0.0003289,2]
[327706801,1716336647404,-151.0,0.0003289,2]
[327706802,1716336647414,-151.0,0.0003289,2]
[327706803,1716336647424,-151.0,0.0003289,2]
[327706804,1716336647435,-151.0,0.0003289,2]
[327706805,1716336647446,-151.0,0.0003289,2]
[327706806,1716336647456,-344.022464,0.00032897,2]
[327706807,1716336647466,-344.022464,0.00033006,2]
[327706808,1716336647476,-496.0,0.00033038,2]
[327706809,1716336647486,-211.044,0.00033038,2]
[327706810,1716336647496,-154.05666744,0.00033101,2]
[327706811,1716336647507,-344.022464,0.00033114,2]
[327706812,1716336647516,-344.022464,0.00033222,2]
[327706813,1716336647528,-258.0,0.00033239,11]
[327706814,1716336647538,-151.0,0.000333,8]
[327706815,1716336647548,-294.14072659,0.00033321,2]
[327706816,1716336647558,-22341.85229593,0.00033322,5]
[327706817,1716336647568,-151.0,0.00033322,2]
[327706818,1716336647578,-151.903811,0.00033322,2]
[327706819,1716336647589,-151.0,0.00033322,2]
[327706820,1716336647598,-151.0,0.00033322,2]
[327706821,1716336647608,-151.0,0.00033322,2]
[327706822,1716336647619,-151.0,0.00033322,2]
[327706823,1716336647628,-151.0,0.00033322,2]
[327706824,1716336647639,-151.0,0.00033322,2]
[327706825,1716336647649,-151.0,0.00033322,2]
[327706826,1716336647658,-151.0,0.00033322,2]
[327706827,1716336647668,-151.0,0.00033322,2]
[327706828,1716336647679,-151.0,0.00033322,2]
[327706829,1716336647688,-6310.67,0.00033399,5]
[327706830,1716336647699,-6310.67,0.00033399,5]
[327706831,1716336647709,-6310.67,0.00033399,5]
[327706832,1716336647719,-6310.67,0.00033399,5]
[327706833,1716336647728,-6310.67,0.00033399,5]
[327706834,1716336647738,-6310.67,0.00033399,5]
[327706835,1716336647748,-6310.67,0.00033399,5]
[327706836,1716336647758,-6310.67,0.00033399,5]
[327706837,1716336647768,-6310.67,0.00033399,5]
[327706838,1716336647778,-6310.67,0.00033399,5]
[327706839,1716336647788,-6310.67,0.00033399,5]
[327706840,1716336647798,-6310.67,0.00033399,5]
[327706841,1716336647807,-6310.67,0.00033399,5]
[327706842,1716336647818,-6310.67,0.00033399,5]
[327706843,1716336647827,-6310.67,0.00033399,5]
[327706844,1716336647838,-6310.67,0.00033399,5]
[327706845,1716336647848,-6310.67,0.00033399,5]
[327706846,1716336647859,-6310.67,0.00033399,5]
[327706847,1716336647869,-6310.67,0.00033399,5]
[327706848,1716336647879,-6310.67,0.00033399,5]
[327706849,1716336647888,-6310.67,0.00033399,5]
[327706850,1716336647899,-6310.67,0.00033399,5]
[327706851,1716336647908,-6310.67,0.00033399,5]
[327706852,1716336647917,-6310.75402263,0.00033399,5]
[327706853,1716336647928,-151.0,0.00033399,2]
[327706854,1716336647938,-151.0,0.00033399,2]
[327706855,1716336647948,-151.0,0.00033399,2]
[327706856,1716336647958,-151.0,0.00033399,2]
[327706857,1716336647967,-151.0,0.00033399,2]
[327706858,1716336647977,-235.39891,0.00033399,2]
[327706859,1716336647986,-151.0,0.00033399,2]
[327706860,1716336647995,-151.0,0.00033399,2]
[327706861,1716336648005,-151.0,0.00033399,2]
[327706862,1716336648014,-151.0,0.00033399,2]
[327706863,1716336648024,-3177.0,0.000334,60]
[327706864,1716336648033,-29860.77108405,0.000334,2]
[327706865,1716336648043,-230.834374,0.000334,2]
[327706866,1716336648052,-154.05666744,0.00033414,2]
[327706867,1716336648061,-871.102,0.00033422,4]
[327706868,1716336648076,-17010.38083387,0.00033422,4]
[327706907,1716336683484,942.90397425,0.00015,2]
[327706947,1716337096557,3328.9625547,0.00015,2]
[327706956,1716337287110,501.0,0.00017,2]
[327707017,1716337832096,-1518.48172937,0.0002,10]
[327707069,1716337837909,-2763.63988445,0.0002,10]
[327707070,1716337837918,-2172.44763718,0.0002,2]
[327707071,1716337837928,-166.666666,0.00021918,2]
[327707072,1716337837937,-151.0,0.00024118,3]
[327707074,1716337837948,-151.0,0.00024118,3]
[327707075,1716337837957,-185.852385,0.00024384,2]
[327707076,1716337837966,-151.0,0.00024964,5]
[327707077,1716337837976,-151.0,0.0002581,5]
[327707078,1716337837985,-151.0,0.00026656,5]
[327707079,1716337837994,-151.0,0.00027502,5]
[327707080,1716337838003,-151.0,0.00028348,7]
[327707081,1716337838012,-151.0,0.00029194,7]
[327707082,1716337838021,-151.0,0.0003004,7]
[327707083,1716337838030,-185.852385,0.0003031,2]
[327707084,1716337838039,-496.0,0.00033056,2]
[327707085,1716337838048,-264.6952001,0.00033079,3]
[327707086,1716337838057,-3864.34065082,0.00033286,2]
[327707087,1716337838069,-326.89525081,0.00033286,2]
[327707088,1716337838080,-32.83945472,0.00033286,2]
[327707089,1716337838089,-155.9602254,0.00033322,2]
[327707090,1716337838098,-586.45164763,0.00033324,5]
[327707099,1716337842486,-359.50100004,0.00025204,2]
[327707123,1716337843142,-2.62673643,0.00025204,2]
[327707125,1716337843151,-3.26421126,0.00033324,5]
[327707126,1716337843161,-499.79541027,0.00033324,2]
[327707127,1716337843171,-471.48,0.00033413,3]
[327707128,1716337843182,-264.89,0.00033414,3]
[327707129,1716337843191,-220.74,0.00033414,3]
[327707130,1716337843202,-294.16798662,0.00033421,2]
[327707131,1716337843212,-24687.46454715,0.00033422,4]
[327707132,1716337843224,-687.9358299,0.00033422,4]
[327707133,1716337843234,-155.54159745,0.00033422,4]
[327707134,1716337843243,-155.64742902,0.00033422,4]
[327707135,1716337843253,-231.36786414,0.00033422,4]
[327707136,1716337843264,-303.58491219,0.00033422,4]
[327707137,1716337843273,-230.7699921,0.00033422,4]
[327707138,1716337843282,-274.38861044,0.00033422,4]
[327707139,1716337843292,-266.358375,0.00033422,4]
[327707140,1716337843301,-189.96457126,0.00033422,2]
[327707141,1716337843310,-2798.2748518,0.00033422,120]
[327707142,1716337843319,-241.04355773,0.00033422,4]
[327707143,1716337843329,-1036.56094084,0.00033422,4]
[327707144,1716337843338,-775.25132775,0.00033422,14]
[327707145,1716337843347,-2172.82098005,0.00033422,4]
[327707204,1716338284721,2000.0,0.0002,15]
[327707248,1716339032273,-445.50403025,0.000189,2]
[327707250,1716339032283,-445.50403025,0.000239,2]
[327707252,1716339032294,-151.0,0.00024021,3]
[327707254,1716339032303,-170.98476,0.00024384,2]
[327707256,1716339032312,-167.267146,0.00024384,2]
[327707257,1716339032322,-151.0,0.00024876,5]
[327707259,1716339032331,-362.12773647,0.00025,2]
[327707261,1716339032340,-151.0,0.00025731,5]
[327707262,1716339032349,-161.838419,0.00027532,2]
[327707263,1716339032358,-5611.87,0.0002797,2]
[327707264,1716339032368,-445.50403025,0.000289,2]
[327707265,1716339032378,-18402.55782208,0.0003,30]
[327707266,1716339032388,-167.267146,0.0003031,2]
[327707267,1716339032398,-15008.76262534,0.000328,2]
[327707276,1716339038426,-264.56499999,0.000328,2]
[327707278,1716339038437,-2814.95268742,0.000328,2]
[327707279,1716339038504,-1499.67234134,0.000328,2]
[327707280,1716339038515,-998.85415971,0.000328,2]
[327707333,1716339043519,-1149.83143153,0.000328,2]
[327707339,1716339043619,-32198.66889148,0.000328,2]
[327707342,1716339043632,-5309.34211757,0.000328,2]
[327707354,1716339043774,-2570.63110799,0.000328,2]
[327707378,1716339048078,-7317.51931393,0.000328,2]
[327707379,1716339048158,-1206.0136618,0.000328,2]
[327707508,1716340238769,-151.0,0.00024127,3]
[327707509,1716340238781,-158.463612,0.00024384,2]
[327707510,1716340238791,-170.98476,0.00024384,2]
[327707511,1716340238801,-198.7612308,0.00029546,2]
[327707512,1716340238811,-2651.24419632,0.00030539,2]
[327707513,1716340238822,-158.463612,0.00030639,2]
[327707514,1716340238832,-417.32360569,0.00032472,2]
[327707515,1716340238842,-247.42290326,0.00032573,2]
[327707516,1716340238852,-1359.2833925,0.000328,2]
[327707773,1716341438814,-151.0,0.00024239,3]
[327707774,1716341438824,-158.463612,0.00024384,2]
[327707776,1716341438834,-170.98476,0.00024384,2]
[327707777,1716341438844,-163.3177179,0.0002758,2]
[327707778,1716341438853,-158.463612,0.00031421,2]